fUST/lending_fUST_20250514
["ID","MTS","AMOUNT","RATE_DAILY","PERIOD"]
[360935292,1747156250100,-660.03,0.00013698,2]
[360935293,1747156250110,-12685.36,0.00013698,2]
[360935294,1747156250120,-418.7124879,0.00013698,2]
[360935295,1747156250130,-400.0,0.00013698,2]
[360935296,1747156250141,-2067.72,0.00013698,2]
[360935297,1747156250150,-400.0,0.00013698,2]
[360935298,1747156250160,-406.46852812,0.00013698,2]
[360935299,1747156250170,-1032.96,0.00013698,2]
[360935300,1747156250179,-400.0,0.00013698,2]
[360935301,1747156250190,-400.0,0.00013698,2]
[360935302,1747156250200,-400.0,0.00013698,2]
[360935303,1747156250210,-400.0,0.00013698,2]
[360935304,1747156250220,-151.0,0.00013698,2]
[360935305,1747156250231,-481.07,0.00013698,2]
[360935306,1747156250241,-400.0,0.00013698,2]
[360935307,1747156250251,-400.0,0.00013698,2]
[360935308,1747156250262,-402.62829905,0.00013698,2]
[360935309,1747156250272,-400.0,0.00013698,2]
[360935310,1747156250281,-400.0,0.00013698,2]
[360935311,1747156250291,-516.43,0.00013698,2]
[360935312,1747156250301,-3265.71,0.00013698,2]
[360935313,1747156250310,-151.0,0.00013698,2]
[360935314,1747156250320,-400.0,0.00013698,2]
[360935315,1747156250330,-300.0,0.00013698,2]
[360935316,1747156250340,-210.72803486,0.00013698,2]
[360935317,1747156251811,-285.71196514,0.00013698,2]
[360935318,1747156251821,-1001.42,0.00013698,2]
[360935319,1747156251830,-422.95,0.00013698,2]
[360935320,1747156251840,-242.23981622,0.00013698,2]
[360935321,1747156251850,-931.41,0.00013698,2]
[360935322,1747156251859,-400.0,0.00013698,2]
[360935323,1747156251869,-545.97,0.00013698,2]
[360935324,1747156251879,-2586.25,0.00013698,2]
[360935325,1747156251889,-3362.65,0.00013698,2]
[360935326,1747156251899,-605.39821854,0.00013698,2]
[360935329,1747156638505,-1347.0,0.00011284,2]
[360935335,1747156996580,160.26,0.00012,10]
[360935344,1747157249137,-5000.0,0.00011653,2]
[360935345,1747157249160,-181.0,0.00011771,2]
[360935346,1747157249183,-960.0379162,0.00012478,2]
[360935347,1747157249206,-300.0,0.00012555,2]
[360935348,1747157249229,-1125.67342903,0.00012556,2]
[360935349,1747157252090,-74.32657097,0.00012556,2]
[360935350,1747157252113,-234.91462295,0.00012556,2]
[360935351,1747157254141,-265.08537705,0.00012556,2]
[360935352,1747157254170,-500.0,0.00012556,2]
[360935353,1747157254196,-235.82028366,0.00012556,2]
[360935354,1747157254224,-418.88707665,0.00012556,2]
[360935369,1747157321856,671.21053269,0.0001,7]
[360935491,1747157432678,-2000.0003146,0.00011553,2]
[360935493,1747157432688,-5000.0,0.00012431,2]
[360935495,1747157432698,-300.0,0.00012498,2]
[360935497,1747157432708,-995.0,0.00012498,2]
[360935499,1747157432718,-11266.53559778,0.000125,2]
[360935502,1747157432728,-21938.55391862,0.00012556,2]
[360935602,1747157438633,-157.74725974,0.00011437,2]
[360935909,1747157443727,-4842.25274026,0.00011437,2]
[360935911,1747157443737,-28061.44608138,0.00012556,2]
[360935913,1747157443748,-4619.3324677,0.00012561,2]
[360935915,1747157443757,-207.4,0.00012652,2]
[360935917,1747157443767,-307.09250511,0.000129,2]
[360935920,1747157443777,-307.09250507,0.00013323,2]
[360935922,1747157443787,-571.45657827,0.00013406,2]
[360935924,1747157443796,-1753.37265471,0.00013406,2]
[360935926,1747157443805,-160.0,0.00013425,2]
[360935928,1747157443815,-160.0,0.00013425,2]
[360935930,1747157443825,-350.75566551,0.000135,2]
[360935932,1747157443835,-2200.0,0.00013506,2]
[360935934,1747157443845,-160.0,0.0001356,2]
[360935936,1747157443855,-422.24190663,0.0001356,2]
[360935938,1747157443864,-652.61296533,0.00013566,2]
[360935940,1747157443874,-16254.18495691,0.000136,3]
[360936214,1747157446641,-1048.79303016,0.000136,3]
[360936216,1747157446653,-271.32,0.00013626,2]
[360936218,1747157446662,-500.0,0.00013673,2]
[360936220,1747157446672,-500.0,0.00013673,2]
[360936222,1747157446682,-500.0,0.00013673,2]
[360936224,1747157446692,-500.0,0.00013673,2]
[360936226,1747157446702,-500.0,0.00013673,2]
[360936228,1747157446712,-500.0,0.00013673,2]
[360936230,1747157446721,-500.0,0.00013673,2]
[360936232,1747157446731,-500.0,0.00013673,2]
[360936234,1747157446741,-500.0,0.00013673,2]
[360936236,1747157446750,-387.69715628,0.00013673,2]
[360936271,1747157447311,-112.30284372,0.00013673,2]
[360936273,1747157447321,-500.0,0.00013673,2]
[360936275,1747157447332,-500.0,0.00013673,2]
[360936277,1747157447342,-500.0,0.00013673,2]
[360936279,1747157447351,-500.0,0.00013673,2]
[360936281,1747157447360,-500.0,0.00013673,2]
[360936283,1747157447370,-500.0,0.00013673,2]
[360936285,1747157447379,-500.0,0.00013673,2]
[360936287,1747157447388,-500.0,0.00013673,2]
[360936289,1747157447398,-500.0,0.00013673,2]
[360936291,1747157447407,-481.3108968,0.00013673,2]
[360936293,1747157447417,-500.0,0.00013673,2]
[360936295,1747157447429,-155.53390053,0.0001369,2]
[360936297,1747157447438,-154.951408,0.00013698,2]
[360936299,1747157447448,-156.364647,0.00013698,2]
[360936301,1747157447457,-151.0,0.00013698,2]
[360936303,1747157447468,-400.0,0.00013698,2]
[360936305,1747157447477,-400.0,0.00013698,2]
[360936307,1747157447487,-400.0,0.00013698,2]
[360936309,1747157447496,-281.62774334,0.00013698,2]
[360936311,1747157447506,-400.0,0.00013698,2]
[360936313,1747157447515,-151.0,0.00013698,2]
[360936315,1747157447525,-151.0,0.00013698,2]
[360936317,1747157447535,-151.0,0.00013698,2]
[360936319,1747157447544,-151.0,0.00013698,2]
[360936321,1747157447553,-400.0,0.00013698,2]
[360936323,1747157447563,-400.0,0.00013698,2]
[360936325,1747157447575,-400.0,0.00013698,2]
[360936327,1747157447586,-400.0,0.00013698,2]
[360936329,1747157447595,-151.0,0.00013698,2]
[360936331,1747157447605,-151.0,0.00013698,2]
[360936332,1747157447615,-151.0,0.00013698,2]
[360936333,1747157447625,-400.0,0.00013698,2]
[360936334,1747157447634,-679.75,0.00013698,2]
[360936335,1747157447644,-400.0,0.00013698,2]
[360936336,1747157447654,-400.0,0.00013698,2]
[360936337,1747157447664,-400.0,0.00013698,2]
[360936338,1747157447674,-707.93,0.00013698,2]
[360936340,1747157447685,-151.0,0.00013698,2]
[360936341,1747157447695,-235.563923,0.00013698,2]
[360936342,1747157447704,-798.36,0.00013698,2]
[360936343,1747157447714,-400.0,0.00013698,2]
[360936344,1747157447723,-151.0,0.00013698,2]
[360936345,1747157447733,-151.0,0.00013698,2]
[360936346,1747157447743,-151.0,0.00013698,2]
[360936347,1747157447753,-547.45,0.00013698,2]
[360936348,1747157447763,-400.0,0.00013698,2]
[360936349,1747157447773,-400.0,0.00013698,2]
[360936350,1747157447783,-400.0,0.00013698,2]
[360936351,1747157447793,-400.0,0.00013698,2]
[360936352,1747157447803,-708.72,0.00013698,2]
[360936353,1747157447813,-400.0,0.00013698,2]
[360936354,1747157447826,-400.0,0.00013698,2]
[360936355,1747157447836,-400.0,0.00013698,2]
[360936356,1747157447846,-400.0,0.00013698,2]
[360936357,1747157447855,-157.53076727,0.00013698,2]
[360936358,1747157447865,-400.0,0.00013698,2]
[360936359,1747157447875,-400.0,0.00013698,2]
[360936360,1747157447884,-880.13,0.00013698,2]
[360936361,1747157447894,-400.0,0.00013698,2]
[360936362,1747157447903,-400.0,0.00013698,2]
[360936363,1747157447912,-400.0,0.00013698,2]
[360936364,1747157447922,-400.0,0.00013698,2]
[360936365,1747157447931,-400.0,0.00013698,2]
[360936366,1747157447941,-941.9,0.00013698,2]
[360936367,1747157447951,-225.10463459,0.00013698,2]
[360936368,1747157447961,-400.0,0.00013698,2]
[360936369,1747157447970,-295.35880521,0.00013698,2]
[360936370,1747157447980,-400.0,0.00013698,2]
[360936371,1747157447989,-400.0,0.00013698,2]
[360936372,1747157447998,-400.0,0.00013698,2]
[360936373,1747157448008,-400.0,0.00013698,2]
[360936374,1747157448017,-400.0,0.00013698,2]
[360936375,1747157448028,-400.0,0.00013698,2]
[360936376,1747157448039,-409.66,0.00013698,2]
[360936377,1747157448049,-405.230488,0.00013698,2]
[360936378,1747157448059,-560.35,0.00013698,2]
[360936379,1747157448068,-400.0,0.00013698,2]
[360936380,1747157448080,-405.230488,0.00013698,2]
[360936381,1747157448089,-1285.42,0.00013698,2]
[360936382,1747157448099,-400.0,0.00013698,2]
[360936383,1747157448108,-400.0,0.00013698,2]
[360936384,1747157448118,-1588.19,0.00013698,2]
[360936385,1747157448128,-400.0,0.00013698,2]
[360936386,1747157448138,-331.91481921,0.00013698,2]
[360936387,1747157448147,-406.37777237,0.00013698,2]
[360936388,1747157448156,-400.0,0.00013698,2]
[360936389,1747157448167,-400.0,0.00013698,2]
[360936390,1747157448177,-400.0,0.00013698,2]
[360936391,1747157448187,-584.16,0.00013698,2]
[360936392,1747157448197,-151.0,0.00013698,2]
[360936393,1747157448207,-502.33587833,0.00013698,2]
[360936394,1747157448217,-400.0,0.00013698,2]
[360936395,1747157448227,-400.0,0.00013698,2]
[360936396,1747157448236,-400.0,0.00013698,2]
[360936397,1747157448246,-400.0,0.00013698,2]
[360936398,1747157448256,-400.0,0.00013698,2]
[360936399,1747157448265,-1182.76,0.00013698,2]
[360936400,1747157448276,-200.1308075,0.00013698,2]
[360936401,1747157448286,-400.0,0.00013698,2]
[360936402,1747157448295,-400.0,0.00013698,2]
[360936403,1747157448305,-400.0,0.00013698,2]
[360936404,1747157448315,-400.0,0.00013698,2]
[360936405,1747157448325,-490.9,0.00013698,2]
[360936406,1747157448334,-400.0,0.00013698,2]
[360936407,1747157448344,-400.0,0.00013698,2]
[360936408,1747157448354,-321.81413635,0.00013698,2]
[360936409,1747157448363,-400.0,0.00013698,2]
[360936410,1747157448374,-522.29543877,0.00013698,2]
[360936411,1747157448384,-545.8,0.00013698,2]
[360936412,1747157448394,-1000.0,0.00013698,2]
[360936414,1747157448404,-405.13332909,0.00013698,2]
[360936415,1747157448415,-400.0,0.00013698,2]
[360936416,1747157448428,-709.5,0.00013698,2]
[360936417,1747157448438,-428.87543579,0.00013698,2]
[360936418,1747157448448,-400.0,0.00013698,2]
[360936419,1747157448459,-400.0,0.00013698,2]
[360936420,1747157448469,-539.36,0.00013698,2]
[360936421,1747157448479,-622.04,0.00013698,2]
[360936422,1747157448488,-698.19,0.00013698,2]
[360936423,1747157448499,-400.0,0.00013698,2]
[360936424,1747157448509,-538.65318899,0.00013698,2]
[360936425,1747157448519,-341.85337822,0.00013698,2]
[360936426,1747157448535,-784.9,0.00013698,2]
[360936427,1747157448545,-400.0,0.00013698,2]
[360936428,1747157448554,-400.0,0.00013698,2]
[360936429,1747157448564,-400.0,0.00013698,2]
[360936430,1747157448574,-400.0,0.00013698,2]
[360936431,1747157448585,-400.0,0.00013698,2]
[360936432,1747157448594,-534.89,0.00013698,2]
[360936433,1747157448604,-400.0,0.00013698,2]
[360936434,1747157448614,-400.0,0.00013698,2]
[360936435,1747157448624,-400.0,0.00013698,2]
[360936436,1747157448635,-400.0,0.00013698,2]
[360936437,1747157448644,-445.16,0.00013698,2]
[360936438,1747157448653,-400.0,0.00013698,2]
[360936439,1747157448664,-400.0,0.00013698,2]
[360936440,1747157448676,-400.0,0.00013698,2]
[360936441,1747157448686,-401.66396262,0.00013698,2]
[360936442,1747157448696,-151.0,0.00013698,2]
[360936443,1747157448705,-151.0,0.00013698,2]
[360936444,1747157448716,-151.0,0.00013698,2]
[360936445,1747157448725,-151.0,0.00013698,2]
[360936446,1747157448735,-400.0,0.00013698,2]
[360936447,1747157448746,-400.0,0.00013698,2]
[360936448,1747157448755,-405.7487908,0.00013698,2]
[360936449,1747157448766,-437.69,0.00013698,2]
[360936450,1747157448776,-767.02,0.00013698,2]
[360936451,1747157448786,-445.56,0.00013698,2]
[360936452,1747157448796,-601.65,0.00013698,2]
[360936453,1747157448806,-400.0,0.00013698,2]
[360936454,1747157448815,-475.53,0.00013698,2]
[360936455,1747157448827,-400.0,0.00013698,2]
[360936456,1747157448837,-400.0,0.00013698,2]
[360936457,1747157448847,-400.0,0.00013698,2]
[360936458,1747157448858,-400.0,0.00013698,2]
[360936459,1747157448868,-400.0,0.00013698,2]
[360936460,1747157448878,-400.0,0.00013698,2]
[360936461,1747157448888,-400.0,0.00013698,2]
[360936462,1747157448898,-651.47,0.00013698,2]
[360936463,1747157448908,-207.29038792,0.00013698,2]
[360936464,1747157448918,-400.0,0.00013698,2]
[360936465,1747157448927,-400.0,0.00013698,2]
[360936466,1747157448937,-400.0,0.00013698,2]
[360936467,1747157448947,-400.0,0.00013698,2]
[360936468,1747157448956,-400.0,0.00013698,2]
[360936469,1747157448967,-400.0,0.00013698,2]
[360936470,1747157448976,-506.98,0.00013698,2]
[360936472,1747157448987,-161.62486503,0.00013698,2]
[360936474,1747157448997,-400.0,0.00013698,2]
[360936475,1747157449008,-400.0,0.00013698,2]
[360936477,1747157449019,-400.0,0.00013698,2]
[360936479,1747157449029,-400.0,0.00013698,2]
[360936480,1747157449038,-400.0,0.00013698,2]
[360936481,1747157449048,-400.0,0.00013698,2]
[360936482,1747157449057,-400.0,0.00013698,2]
[360936484,1747157449067,-400.0,0.00013698,2]
[360936486,1747157449078,-400.0,0.00013698,2]
[360936488,1747157449087,-928.72,0.00013698,2]
[360936490,1747157449097,-400.0,0.00013698,2]
[360936491,1747157449106,-400.0,0.00013698,2]
[360936492,1747157449116,-400.0,0.00013698,2]
[360936493,1747157449126,-400.0,0.00013698,2]
[360936494,1747157449136,-400.0,0.00013698,2]
[360936495,1747157449146,-400.0,0.00013698,2]
[360936496,1747157449156,-400.0,0.00013698,2]
[360936497,1747157449166,-1086.88,0.00013698,2]
[360936498,1747157449176,-400.0,0.00013698,2]
[360936499,1747157449186,-400.0,0.00013698,2]
[360936500,1747157449196,-400.0,0.00013698,2]
[360936501,1747157449207,-400.0,0.00013698,2]
[360936502,1747157449217,-767.43,0.00013698,2]
[360936503,1747157449227,-400.0,0.00013698,2]
[360936504,1747157449238,-628.68,0.00013698,2]
[360936505,1747157449248,-400.0,0.00013698,2]
[360936506,1747157449258,-400.0,0.00013698,2]
[360936507,1747157449268,-1629.25,0.00013698,2]
[360936508,1747157449278,-400.0,0.00013698,2]
[360936509,1747157449288,-500.0,0.00013698,2]
[360936510,1747157449297,-400.0,0.00013698,2]
[360936511,1747157449307,-400.0,0.00013698,2]
[360936512,1747157449316,-400.0,0.00013698,2]
[360936513,1747157449328,-691.59,0.00013698,2]
[360936514,1747157449338,-400.0,0.00013698,2]
[360936515,1747157449347,-400.0,0.00013698,2]
[360936516,1747157449357,-1197.06,0.00013698,2]
[360936517,1747157449367,-400.0,0.00013698,2]
[360936518,1747157449377,-400.0,0.00013698,2]
[360936519,1747157449387,-400.0,0.00013698,2]
[360936520,1747157449397,-400.0,0.00013698,2]
[360936521,1747157449407,-169.34703786,0.00013698,2]
[360936522,1747157449420,-512.0,0.00013698,2]
[360936523,1747157449430,-1174.3,0.00013698,2]
[360936524,1747157449440,-400.0,0.00013698,2]
[360936525,1747157449450,-407.04,0.00013698,2]
[360936526,1747157449460,-410.32,0.00013698,2]
[360936528,1747157449470,-3105.17,0.00013698,2]
[360936530,1747157449480,-836.47,0.00013698,2]
[360936532,1747157449491,-400.0,0.00013698,2]
[360936533,1747157449502,-400.0,0.00013698,2]
[360936534,1747157449512,-309.68281624,0.00013698,2]
[360936536,1747157449522,-400.0,0.00013698,2]
[360936538,1747157449531,-400.0,0.00013698,2]
[360936540,1747157449541,-628.69,0.00013698,2]
[360936542,1747157449551,-400.0,0.00013698,2]
[360936544,1747157449560,-400.0,0.00013698,2]
[360936546,1747157449570,-1100.28,0.00013698,2]
[360936547,1747157449580,-400.0,0.00013698,2]
[360936548,1747157449589,-485.1,0.00013698,2]
[360936550,1747157449598,-427.50915335,0.00013698,2]
[360936551,1747157449607,-870.56,0.00013698,2]
[360936552,1747157449617,-401.59274398,0.00013698,2]
[360936553,1747157449626,-1070.44,0.00013698,2]
[360936554,1747157449636,-1344.39,0.00013698,2]
[360936555,1747157449645,-400.0,0.00013698,2]
[360936556,1747157449654,-1849.2,0.00013698,2]
[360936557,1747157449663,-517.91,0.00013698,2]
[360936558,1747157449673,-400.0,0.00013698,2]
[360936560,1747157449683,-400.0,0.00013698,2]
[360936561,1747157449693,-456.09,0.00013698,2]
[360936562,1747157449702,-486.94,0.00013698,2]
[360936563,1747157449711,-390.32003888,0.00013698,2]
[360936564,1747157449752,-471.48996112,0.00013698,2]
[360936565,1747157449762,-484.59,0.00013698,2]
[360936566,1747157449771,-400.0,0.00013698,2]
[360936567,1747157449781,-400.0,0.00013698,2]
[360936568,1747157449791,-400.0,0.00013698,2]
[360936569,1747157449800,-688.31,0.00013698,2]
[360936570,1747157449810,-1300.64,0.00013698,2]
[360936571,1747157449819,-459.18,0.00013698,2]
[360936572,1747157449829,-400.0,0.00013698,2]
[360936573,1747157449838,-228.39003888,0.00013698,2]
[360936574,1747157450047,-34.36013266,0.00013698,2]
[360936575,1747157450059,-1082.72982846,0.00013698,2]
[360936576,1747157450068,-400.0,0.00013698,2]
[360936577,1747157450078,-1675.94,0.00013698,2]
[360936578,1747157450088,-1120.24,0.00013698,2]
[360936579,1747157450097,-425.17,0.00013698,2]
[360936580,1747157450107,-400.0,0.00013698,2]
[360936581,1747157450118,-400.0,0.00013698,2]
[360936582,1747157450127,-590.12,0.00013698,2]
[360936583,1747157450137,-400.0,0.00013698,2]
[360936584,1747157450147,-1017.63,0.00013698,2]
[360936585,1747157450156,-400.0,0.00013698,2]
[360936586,1747157450167,-566.38,0.00013698,2]
[360936587,1747157450177,-403.52021058,0.00013698,2]
[360936588,1747157450187,-2468.3,0.00013698,2]
[360936589,1747157450196,-400.0,0.00013698,2]
[360936590,1747157450207,-400.0,0.00013698,2]
[360936591,1747157450216,-400.0,0.00013698,2]
[360936592,1747157450226,-202.91587572,0.00013698,2]
[360936593,1747157450235,-400.0,0.00013698,2]
[360936594,1747157450246,-435.68,0.00013698,2]
[360936595,1747157450256,-2506.30453048,0.00013698,2]
[360936679,1747158434131,-5000.0,0.00012154,2]
[360936680,1747158434153,-254.5611619,0.00012277,2]
[360936681,1747158434177,-164.476756,0.00012578,2]
[360936682,1747158434200,-1200.0,0.0001263,2]
[360936683,1747158434221,-300.0,0.0001263,2]
[360936684,1747158434242,-300.0,0.0001263,2]
[360936685,1747158434263,-1451.53949678,0.00012631,2]
[360936785,1747158632279,-254.87,0.00012504,2]
[360936787,1747158632291,-4745.13,0.00012504,2]
[360936789,1747158632301,-2236.95638922,0.00012631,2]
[360936791,1747158632311,-599.7573668,0.00012637,2]
[360936793,1747158632320,-500.0,0.00012649,2]
[360936795,1747158632329,-500.0,0.00012649,2]
[360936797,1747158632339,-265.12777305,0.00012649,2]
[360936799,1747158632348,-300.0,0.00012649,2]
[360936801,1747158632358,-300.0,0.00012649,2]
[360936803,1747158632367,-300.0,0.00012649,2]
[360936805,1747158632377,-500.0,0.0001265,2]
[360936807,1747158632388,-500.0,0.0001265,2]
[360936809,1747158632398,-191.22761149,0.0001265,2]
[360936811,1747158632409,-500.0,0.0001265,2]
[360936813,1747158632419,-500.0,0.0001265,2]
[360936815,1747158632430,-500.0,0.0001265,2]
[360936817,1747158632440,-500.0,0.0001265,2]
[360936819,1747158632450,-500.0,0.0001265,2]
[360936822,1747158632460,-648.94365306,0.0001265,2]
[360936824,1747158632469,-500.0,0.0001265,2]
[360936826,1747158632479,-500.0,0.0001265,2]
[360936828,1747158632489,-500.0,0.0001265,2]
[360936831,1747158632499,-500.0,0.0001265,2]
[360936832,1747158632508,-819.79544426,0.0001265,2]
[360936834,1747158632518,-5000.0,0.00012652,2]
[360936836,1747158632527,-4043.25415058,0.00012652,2]
[360936879,1747158632919,-500.0,0.00012649,2]
[360936881,1747158632929,-956.74584942,0.00012652,2]
[360936883,1747158632938,-5000.0,0.00012652,2]
[360936885,1747158632948,-5000.0,0.00012652,2]
[360936887,1747158632958,-5000.0,0.00013142,2]
[360936889,1747158632967,-296.02411035,0.00013361,2]
[360936891,1747158632977,-207.4,0.00013453,2]
[360936893,1747158632987,-639.01686189,0.00013488,2]
[360936895,1747158632997,-1800.0,0.00013506,2]
[360936897,1747158633006,-1187.9303,0.0001352,2]
[360936899,1747158633016,-160.0,0.00013535,2]
[360936901,1747158633026,-160.0,0.00013535,2]
[360936903,1747158633036,-422.24190663,0.00013535,2]
[360936905,1747158633047,-201.01492869,0.00013536,2]
[360936907,1747158633057,-217.056,0.000136,2]
[360936909,1747158633067,-500.0,0.00013673,2]
[360936911,1747158633078,-500.38043803,0.00013673,2]
[360936913,1747158633088,-500.0,0.00013673,2]
[360936915,1747158633098,-500.0,0.00013673,2]
[360936917,1747158633109,-500.0,0.00013673,2]
[360936919,1747158633119,-500.0,0.00013673,2]
[360936921,1747158633129,-500.0,0.00013673,2]
[360936923,1747158633140,-44.27852103,0.00013673,2]
[360937244,1747158643118,-5000.0,0.00012379,2]
[360937246,1747158643128,-397.46811926,0.00012649,2]
[360937248,1747158643138,-455.72147897,0.00013673,2]
[360937250,1747158643148,-478.06439461,0.00013673,2]
[360937252,1747158643159,-500.86707672,0.00013673,2]
[360937254,1747158643169,-503.18132367,0.00013673,2]
[360937256,1747158643178,-501.05069217,0.00013673,2]
[360937258,1747158643188,-503.83807161,0.00013673,2]
[360937260,1747158643197,-501.38687748,0.00013673,2]
[360937262,1747158643207,-501.37331819,0.00013673,2]
[360937264,1747158643217,-153.31837564,0.00013673,2]
[360937266,1747158643226,-500.0,0.00013673,2]
[360937268,1747158643236,-316.39662741,0.00013673,2]
[360937270,1747158643246,-91.68802607,0.00013673,2]
[360939149,1747159634717,-5000.0,0.00011265,2]
[360939150,1747159634739,-208.91177213,0.00011379,2]
[360939151,1747159634763,-1200.0,0.00011734,2]
[360939152,1747159635050,-300.0,0.00011734,2]
[360939153,1747159635097,-299.97140209,0.00011734,2]
[360939155,1747159657764,-181.0,0.0001091,2]
[360939236,1747159750157,-5000.0,0.00011617,2]
[360939237,1747159750200,-167.01410382,0.00011636,2]
[360939238,1747159750244,-300.0,0.00011733,2]
[360939239,1747159750273,-500.0,0.00011733,2]
[360939240,1747159750295,-478.22768348,0.00011733,2]
[360939241,1747159750320,-500.0,0.00011734,2]
[360939242,1747159750341,-500.0,0.00011734,2]
[360939243,1747159750362,-500.0,0.00011734,2]
[360939244,1747159750384,-500.0,0.00011734,2]
[360939245,1747159750406,-554.63537925,0.00011734,2]
[360939246,1747159750429,-500.0,0.00011734,2]
[360939247,1747159750452,-500.0,0.00011734,2]
[360939248,1747159750474,-500.0,0.00011734,2]
[360939249,1747159750496,-500.0,0.00011734,2]
[360939250,1747159750516,-500.0,0.00011734,2]
[360939251,1747159750538,-500.0,0.00011734,2]
[360939252,1747159750559,-500.0,0.00011734,2]
[360939253,1747159750580,-551.49100112,0.00011734,2]
[360939254,1747159750601,-500.0,0.00011734,2]
[360939255,1747159750623,-500.0,0.00011734,2]
[360939256,1747159750644,-500.0,0.00011734,2]
[360939257,1747159750667,-500.0,0.00011734,2]
[360939258,1747159750692,-500.0,0.00011734,2]
[360939259,1747159750715,-500.0,0.00011734,2]
[360939260,1747159750740,-500.0,0.00011734,2]
[360939261,1747159750766,-500.0,0.00011734,2]
[360939262,1747159750791,-500.0,0.00011734,2]
[360939263,1747159750815,-9.10503216,0.00011734,2]
[360939264,1747159764177,-845.97473571,0.00011501,2]
[360939657,1747159836064,-4154.02526429,0.00011501,2]
[360939659,1747159836074,-500.0,0.00011732,2]
[360939661,1747159836086,-500.0,0.00011732,2]
[360939663,1747159836098,-563.68057938,0.00011732,2]
[360939665,1747159836107,-500.0,0.00011732,2]
[360939667,1747159836117,-500.0,0.00011732,2]
[360939669,1747159836127,-500.0,0.00011732,2]
[360939671,1747159836138,-500.0,0.00011732,2]
[360939674,1747159836155,-500.0,0.00011732,2]
[360939677,1747159836166,-500.0,0.00011732,2]
[360939680,1747159836180,-500.0,0.00011732,2]
[360939683,1747159836190,-500.0,0.00011732,2]
[360939685,1747159836200,-500.0,0.00011732,2]
[360939687,1747159836210,-500.0,0.00011732,2]
[360939689,1747159836219,-500.0,0.00011732,2]
[360939692,1747159836231,-500.0,0.00011732,2]
[360939694,1747159836240,-500.0,0.00011732,2]
[360939696,1747159836250,-500.0,0.00011732,2]
[360939698,1747159836260,-500.0,0.00011732,2]
[360939700,1747159836270,-575.28148828,0.00011732,2]
[360939702,1747159836279,-542.9502053,0.00011732,2]
[360939704,1747159836289,-500.0,0.00011732,2]
[360939706,1747159836299,-500.0,0.00011732,2]
[360939708,1747159836308,-500.0,0.00011732,2]
[360939710,1747159836318,-500.0,0.00011732,2]
[360939712,1747159836328,-500.0,0.00011732,2]
[360939714,1747159836337,-500.0,0.00011732,2]
[360939716,1747159836347,-500.0,0.00011732,2]
[360939718,1747159836358,-500.0,0.00011732,2]
[360939720,1747159836368,-500.0,0.00011732,2]
[360939722,1747159836378,-500.0,0.00011732,2]
[360939724,1747159836387,-500.0,0.00011732,2]
[360939726,1747159836398,-500.0,0.00011732,2]
[360939728,1747159836408,-500.0,0.00011732,2]
[360939730,1747159836418,-500.0,0.00011732,2]
[360939732,1747159836429,-500.0,0.00011732,2]
[360939734,1747159836439,-500.0,0.00011732,2]